[Event "Singapore Open-A 2024"]
[Site "Singapore"]
[Date "2024.11.29"]
[Round "1.10"]
[White "Piorun, Kacper"]
[Black "Cabe, Arlan"]
[Result "1-0"]
[ECO "A15"]
[WhiteElo "2580"]
[BlackElo "2305"]
[Annotator "TA"]
[PlyCount "79"]
[EventDate "2024.11.29"]
[EventType "swiss"]
[EventCountry "SIN"]
[SourceTitle "playchess.com"]
[Source "ChessBase"]
[SourceQuality "1"]
[TimeControl "5400+30"]

{[%evp 15,79,6,7,6,28,0,18,0,-2,-1,0,0,0,0,24,19,29,2,4,6,20,16,35,0,8,0,53,45,118,83,185,171,393,390,431,417,447,130,204,211,662,644,891,856,1445,1418,3072,1572,1624,1623,1622,1616,1543,1295,29988,29989,29989,29990,29990,1450,1316,1225,29989,29990,29997,637]} 1. c4 {[%emt 0:00:02]} Nf6 {[%emt 0:01:28]} 2. Nf3 {[%emt 0:00:17]} c6 {[%emt 0:00:32]} 3. g3 {[%emt 0:01:15]} g6 {[%emt 0:01:50]} 4. b3 {[%emt 0:00:25]} Bg7 {[%emt 0:01:01]} 5. Bb2 {[%emt 0:00:06]} d6 {[%emt 0:00:56]} 6. Bg2 {[%emt 0:03:24]} e5 {[%emt 0:07:39]} 7. d3 {[%emt 0:00:03]} Nbd7 {[%emt 0:00:25][%cal Bb8d7,Bd7f8,Bf8e6,Be6d4][%mdl 32]} 8. O-O {[%emt 0:00:10]} O-O {[%emt 0:00:31]} 9. Nc3 {[%emt 0:03:07]} Qe7 {[%emt 0:03:21]} 10. Rb1 {[%emt 0:09:19]} Rd8 {[%emt 0:05:18]} 11. Nd2 {[%emt 0:06:34] The position is equal.} Nf8 {[%emt 0:01:21]} 12. e4 {[%emt 0:05:54]} h5 {[%emt 0:23:44][%cal Oh5h4]} 13. Nf3 {[%emt 0:07:07]} Bg4 {[%emt 0:01:11]} 14. Qe1 {[%emt 0:01:24]} Qd7 {[%emt 0:03:55]} 15. Nd1 {[%emt 0:03:52]} Ne6 {[%emt 0:01:10]} 16. Ne3 {[%emt 0:06:44]} a5 {[%emt 0:09:36]} 17. Nh4 {[%emt 0:03:26] aiming for f3.} Nd4 {[%emt 0:06:20]} 18. f3 {[%emt 0:00:41][%cal Bf2f3,Bf3f4,Bf4f5,Bf5f6,Bf6g7][%mdl 32]} Bh3 {[%emt 0:06:44]} 19. f4 {[%emt 0:08:40]} Bxg2 {[%emt 0:05:37]} 20. Kxg2 {[%emt 0:00:03]} Nh7 {[%emt 0:06:15]} (20... b5 $11) 21. f5 $14 {[%emt 0:11:21]} (21. Bxd4 {simplifies} exd4 22. Nc2 c5 23. Na3) 21... g5 {[%emt 0:01:35] [#] Black is on the road to losing.} ({Black should play} 21... Qe8 $14) 22. f6 $1 $16 {[%emt 0:00:05][%mdl 512]} gxh4 {[%emt 0:04:49]} (22... Nxf6 $16 {keeps fighting.} 23. Nhf5 Nxf5 24. Rxf5 Nh7) (22... Bxf6 23. Nhf5) 23. fxg7 $18 {[%emt 0:00:05]} Ng5 $2 {[%emt 0:00:40]} (23... h3+ {is a better defense.} 24. Kh1 Ne6) 24. g4 {[%emt 0:07:41] And now Bxd4 would win.} (24. gxh4 Qh3+ 25. Kh1 Nge6 26. Bxd4 Nxd4) 24... h3+ {[%emt 0:03:38] [#]} 25. Kh1 $1 {[%emt 0:00:13] Bxd4 would now be deadly.} Ndf3 {[%emt 0:00:20] [#]} 26. Qg3 {[%emt 0:03:28]} (26. Rxf3 $1 $18 {and the rest is easy.} Nxf3 27. Qg3) 26... h4 $16 {[%emt 0:00:50]} 27. Qf2 {[%emt 0:00:04]} Re8 $2 {[%emt 0:01:19]} (27... d5) 28. Nf5 $18 {[%emt 0:02:00]} d5 {[%emt 0:00:29][%cal Bd6d5,Bd5e4,Be4d3][%mdl 32]} 29. Bc1 {[%emt 0:03:37] Hoping for Bxg5.} (29. Nxh4 dxe4 30. Nxf3 (30. dxe4 Nd2 $11) 30... exf3 $14) 29... dxe4 {[%emt 0:01:29]} 30. Bxg5 {[%emt 0:00:14]} (30. Nxh4 Qxg4 (30... Qxd3 $2 31. Bxg5 Nxg5 32. Qf5 $18) 31. Bxg5 Qxg5 (31... Nxg5 32. Rg1 $16) 32. dxe4 Qxh4 $18) 30... Nxg5 {[%emt 0:00:10]} 31. Qxh4 {[%emt 0:00:40]} Nh7 {[%emt 0:01:12]} 32. Nh6+ {[%emt 0:00:07]} Kxg7 {[%emt 0:00:03][%cal Bg8g7,Bg7f7,Bf7e7,Be7d6,Bd6c5,Bc5b4][%mdl 32]} 33. Rxf7+ {[%emt 0:00:07]} Qxf7 {[%emt 0:00:39]} 34. Nxf7 {[%emt 0:00:07]} exd3 {[%emt 0:00:40]} 35. Qh6+ {[%emt 0:00:24]} Kxf7 {[%emt 0:00:11]} 36. Rf1+ {[%emt 0:00:38]} Ke7 {[%emt 0:00:56]} 37. Qxh7+ {[%emt 0:00:09]} (37. c5 $142 Rf8 38. Qxh7+ Ke6 39. Qh6+ (39. Qxd3 Rxf1+ 40. Qxf1 a4 $18) 39... Kd5 40. Qd6+ (40. Rxf8 Rxf8 41. Qxf8 Ke6 $18) 40... Ke4 41. Re1+ (41. Rxf8 Rxf8 42. Qxf8 Kd4 $18) 41... Kf4 42. Qxe5+ (42. Qxd3 Rae8 43. Qg6 Rd8 44. Qh6+ Kf3 45. Qe3+ Kxg4 46. Qg3+ Kf5 47. Rxe5+ Kf6 48. Qg5+ Kf7 49. Re7#) 42... Kxg4 43. Qg3+ Kf5 44. Qf3+ (44. Qxh3+ Kf4 45. Qg3+ Kf5 46. Qf3+ Kg5 47. Rg1+ Kh6 48. Qh3#) 44... Kg6 45. Rg1+ Kh7 46. Qxh3#) 37... Kd6 {[%emt 0:00:15]} 38. Qxd3+ {[%emt 0:00:08]} Kc5 {[%emt 0:00:14]} 39. Qe3+ {[%emt 0:00:36]} Kb4 {[%emt 0:00:24]} 40. a3+ {[%emt 0:00:18] Weighted Error Value: White=0.18 (very precise) /Black=1.01.  Missed win:     	White=1     	---        Mistake:       	---       	Black=5      Inaccurate:     	White=3     	Black=1      OK:         	White=6     	Black=4      Best:        	White=1     	Black=1      Strong:       	White=1     	---        Brilliant:      	White=1     	---} 1-0